[Event "DMP Ekstraliga 2020"]
[Site "Krakow"]
[Date "2020.08.28"]
[Round "3.17"]
[White "Bobras, Piotr"]
[Black "Sliwerski, Radoslaw"]
[Result "1-0"]
[ECO "B99"]
[WhiteElo "2487"]
[BlackElo "2042"]
[Annotator "ChessBase"]
[PlyCount "105"]
[EventDate "2020.08.26"]
[EventType "team-tourn"]
[EventCountry "POL"]
[SourceTitle "playchess.com"]
[Source "ChessBase"]
[SourceQuality "1"]
[TimeControl "30/5400+30:1800+30"]

1. e4 {[%emt 0:00:00]} c5 {[%emt 0:00:00]} 2. Nf3 {[%emt 0:00:00]} d6 {[%emt 0:00:00]} 3. d4 {[%emt 0:00:00]} cxd4 {[%emt 0:00:00]} 4. Nxd4 {[%emt 0:00:00]} Nf6 {[%emt 0:00:01]} 5. Nc3 {[%emt 0:00:00]} a6 {[%emt 0:00:03]} 6. Bg5 {[%emt 0:00:26]} e6 {[%emt 0:01:15]} 7. f4 {[%emt 0:00:06]} Be7 {[%emt 0:00:05]} 8. Qf3 {[%emt 0:00:06]} Qc7 {[%emt 0:00:02]} 9. O-O-O {[%emt 0:00:11]} Nbd7 {[%emt 0:00:02]} 10. g4 {[%emt 0:05:45]} b5 {[%emt 0:00:57]} 11. Bxf6 {[%emt 0:00:06]} Nxf6 {[%emt 0:00:43]} 12. g5 {[%emt 0:00:05]} Nd7 {[%emt 0:00:29]} 13. f5 {[%emt 0:00:12]} O-O {[%emt 0:01:39]} 14. Rg1 {[%emt 0:01:17]} b4 {[%emt 0:02:22]} 15. Nce2 {[%emt 0:00:06]} e5 {[%emt 0:00:24]} 16. f6 {[%emt 0:00:06]} exd4 {[%emt 0:00:17]} 17. fxe7 {[%emt 0:00:04]} Re8 {[%emt 0:00:05]} 18. e5 {[%emt 0:00:10]} d3 {[%emt 0:15:29]} 19. Qxd3 {[%emt 0:02:14]} Nxe5 {[%emt 0:17:49]} 20. Qxd6 {[%emt 0:14:05]} Qxd6 {[%emt 0:00:30]} 21. Rxd6 {[%emt 0:00:03]} Ra7 {[%emt 0:00:15]} 22. Nd4 {[%emt 0:04:24]} g6 {[%emt 0:15:20]} 23. Rb6 {[%emt 0:19:43]} Rb7 {[%emt 0:10:38]} 24. Rxa6 {[%emt 0:05:42]} Rbxe7 {[%emt 0:02:56]} 25. Rb6 {[%emt 0:11:28]} Rd8 {[%emt 0:05:07]} 26. c3 {[%emt 0:04:25]} bxc3 {[%emt 0:02:31]} 27. bxc3 {[%emt 0:00:04]} Rc7 {[%emt 0:04:12]} 28. Kb2 {[%emt 0:01:57]} Bb7 {[%emt 0:08:45]} 29. Be2 {[%emt 0:09:28]} Bd5 {[%emt 0:03:01]} 30. Rb5 {[%emt 0:12:54]} Ra7 {[%emt 0:04:29]} 31. Ra1 {[%emt 0:30:56]} Nc6 {[%emt 0:34:41]} 32. Rxd5 {[%emt 0:07:39]} Rxd5 {[%emt 0:00:39]} 33. Nxc6 {[%emt 0:00:01]} Rd2+ {[%emt 0:00:41]} 34. Kc1 {[%emt 0:00:07]} Rad7 {[%emt 0:00:07]} 35. Nd4 {[%emt 0:01:53]} R7xd4 {[%emt 0:00:06]} 36. cxd4 {[%emt 0:00:01]} Rxe2 {[%emt 0:00:06]} 37. a4 {[%emt 0:00:05]} Re4 {[%emt 0:00:27]} 38. a5 {[%emt 0:00:33]} Rxd4 {[%emt 0:00:02]} 39. a6 {[%emt 0:00:06]} Rd8 {[%emt 0:00:02]} 40. a7 {[%emt 0:00:00]} Ra8 {[%emt 0:00:00]} 41. Kd2 {[%emt 0:00:00]} h6 {[%emt 0:00:00]} 42. h4 {[%emt 0:00:00]} hxg5 {[%emt 0:00:00]} 43. hxg5 {[%emt 0:00:00]} Kf8 {[%emt 0:00:00]} 44. Kd3 {[%emt 0:00:00]} Ke7 {[%emt 0:00:00]} 45. Ra6 {[%emt 0:00:00]} Kd7 {[%emt 0:00:00]} 46. Kd4 {[%emt 0:00:00]} Kc7 {[%emt 0:00:00]} 47. Ke5 {[%emt 0:00:00]} Kd7 {[%emt 0:00:00]} 48. Kd5 {[%emt 0:00:00]} Kc7 {[%emt 0:00:00]} 49. Kc5 {[%emt 0:00:00]} Kb7 {[%emt 0:02:36]} 50. Kb5 {[%emt 0:00:00]} f5 {[%emt 0:02:48]} 51. gxf6 {[%emt 0:00:00]} g5 {[%emt 0:00:23]} 52. Rb6+ {[%emt 0:01:14]} Kc7 {[%emt 0:01:09]} 53. Ka6 {[%emt 0:01:06]} 1-0

[Event "DMP Ekstraliga 2020"]
[Site "Krakow"]
[Date "2020.08.28"]
[Round "3.18"]
[White "Kulon, Klaudia"]
[Black "Kiolbasa, Oliwia"]
[Result "1/2-1/2"]
[ECO "A45"]
[WhiteElo "2336"]
[BlackElo "2160"]
[Annotator "ChessBase"]
[PlyCount "73"]
[EventDate "2020.08.26"]
[EventType "team-tourn"]
[EventCountry "POL"]
[SourceTitle "playchess.com"]
[Source "ChessBase"]
[SourceQuality "1"]
[TimeControl "30/5400+30:1800+30"]

1. d4 {[%emt 0:00:00]} Nf6 {[%emt 0:00:00]} 2. Bg5 {[%emt 0:00:00]} e6 {[%emt 0:00:00]} 3. Nd2 {[%emt 0:00:00]} c5 {[%emt 0:00:24]} 4. e3 {[%emt 0:00:15]} b6 {[%emt 0:02:26]} 5. f4 {[%emt 0:04:02]} Bb7 {[%emt 0:01:06]} 6. Ngf3 {[%emt 0:00:08]} Be7 {[%emt 0:02:35]} 7. Bd3 {[%emt 0:11:47]} Nc6 {[%emt 0:12:35]} 8. c3 {[%emt 0:00:55]} Nd5 {[%emt 0:00:44]} 9. Nc4 {[%emt 0:01:25]} Qc7 {[%emt 0:12:23]} 10. Bxe7 {[%emt 0:08:44]} Ncxe7 {[%emt 0:01:11]} 11. Qd2 {[%emt 0:00:15]} b5 {[%emt 0:05:21]} 12. Nce5 {[%emt 0:04:40]} c4 {[%emt 0:06:14]} 13. Bc2 {[%emt 0:00:06]} Nf6 {[%emt 0:03:44]} 14. Ng5 {[%emt 0:03:33]} h6 {[%emt 0:00:40]} 15. Nh3 {[%emt 0:01:03]} d6 {[%emt 0:07:17]} 16. Nf3 {[%emt 0:00:22]} Ne4 {[%emt 0:06:14]} 17. Qe2 {[%emt 0:01:06]} a5 {[%emt 0:02:50]} 18. O-O {[%emt 0:01:59]} O-O {[%emt 0:02:21]} 19. Nd2 {[%emt 0:01:15]} Nxd2 {[%emt 0:08:00]} 20. Qxd2 {[%emt 0:00:19]} f5 {[%emt 0:00:05]} 21. a4 {[%emt 0:04:57]} bxa4 {[%emt 0:00:11]} 22. Rxa4 {[%emt 0:00:21]} Nd5 {[%emt 0:00:19]} 23. Qe2 {[%emt 0:04:16]} Nb6 {[%emt 0:09:59]} 24. Ra2 {[%emt 0:00:31]} Qc6 {[%emt 0:00:05]} 25. Re1 {[%emt 0:01:39]} a4 {[%emt 0:00:54]} 26. Qf2 {[%emt 0:06:10]} Qd7 {[%emt 0:01:02]} 27. e4 {[%emt 0:01:40]} fxe4 {[%emt 0:01:33]} 28. Bxe4 {[%emt 0:00:04]} Bxe4 {[%emt 0:01:23]} 29. Rxe4 {[%emt 0:00:02]} Nd5 {[%emt 0:04:07]} 30. Ra3 {[%emt 0:04:02]} Nf6 {[%emt 0:01:14]} 31. Re1 {[%emt 0:30:19]} d5 {[%emt 0:30:29]} 32. Qc2 {[%emt 0:04:57]} Rfb8 {[%emt 0:00:30]} 33. Nf2 {[%emt 0:00:22]} Rb3 {[%emt 0:01:48]} 34. Rea1 {[%emt 0:01:24]} Rab8 {[%emt 0:01:28]} 35. R1a2 {[%emt 0:02:21]} Rxa3 {[%emt 0:01:29]} 36. Rxa3 {[%emt 0:00:02]} Rb3 {[%emt 0:00:06]} 37. Ra2 {[%emt 0:03:54]} 1/2-1/2

[Event "DMP Ekstraliga 2020"]
[Site "Krakow"]
[Date "2020.08.28"]
[Round "3.19"]
[White "Moranda, Wojciech"]
[Black "Wojtaszek, Radoslaw"]
[Result "1/2-1/2"]
[ECO "D38"]
[WhiteElo "2605"]
[BlackElo "2717"]
[Annotator "ChessBase"]
[PlyCount "39"]
[EventDate "2020.08.26"]
[EventType "team-tourn"]
[EventCountry "POL"]
[SourceTitle "playchess.com"]
[Source "ChessBase"]
[SourceQuality "1"]
[TimeControl "30/5400+30:1800+30"]

1. d4 {[%emt 0:00:00]} Nf6 {[%emt 0:00:00]} 2. c4 {[%emt 0:02:50]} e6 {[%emt 0:00:00]} 3. Nf3 {[%emt 0:00:21]} d5 {[%emt 0:00:00]} 4. Nc3 {[%emt 0:00:20]} Bb4 {[%emt 0:00:00]} 5. cxd5 {[%emt 0:00:32]} exd5 {[%emt 0:00:00]} 6. Qa4+ {[%emt 0:00:12]} Nc6 {[%emt 0:00:03]} 7. Bg5 {[%emt 0:00:11]} h6 {[%emt 0:00:44]} 8. Bxf6 {[%emt 0:00:15]} Qxf6 {[%emt 0:00:06]} 9. e3 {[%emt 0:00:18]} O-O {[%emt 0:01:14]} 10. Be2 {[%emt 0:00:13]} Be6 {[%emt 0:03:03]} 11. O-O {[%emt 0:03:12]} a6 {[%emt 0:01:28]} 12. Rfc1 {[%emt 0:00:47]} Bd6 {[%emt 0:01:36]} 13. Qd1 {[%emt 0:00:53]} Ne7 {[%emt 0:00:18]} 14. Na4 {[%emt 0:01:14]} b6 {[%emt 0:09:10]} 15. b4 {[%emt 0:00:54]} g5 {[%emt 0:01:01]} 16. Nb2 {[%emt 0:03:10]} Ng6 {[%emt 0:00:54]} 17. Nd3 {[%emt 0:03:00]} a5 {[%emt 0:00:11]} 18. b5 {[%emt 0:04:00]} Rae8 {[%emt 0:18:31]} 19. Rc3 {[%emt 0:17:36]} Re7 {[%emt 0:10:39]} 20. Rac1 1/2-1/2

[Event "DMP Ekstraliga 2020"]
[Site "Krakow"]
[Date "2020.08.28"]
[Round "3.20"]
[White "Gajewski, Grzegorz"]
[Black "Dziuba, Marcin"]
[Result "0-1"]
[ECO "D35"]
[WhiteElo "2616"]
[BlackElo "2590"]
[Annotator "ChessBase"]
[PlyCount "80"]
[EventDate "2020.08.26"]
[EventType "team-tourn"]
[EventCountry "POL"]
[SourceTitle "playchess.com"]
[Source "ChessBase"]
[SourceQuality "1"]
[TimeControl "30/5400+30:1800+30"]

1. c4 {[%emt 0:00:00]} e6 {[%emt 0:01:39]} 2. d4 {[%emt 0:03:32]} d5 {[%emt 0:00:20]} 3. Nc3 {[%emt 0:00:06]} Nf6 {[%emt 0:00:18]} 4. cxd5 {[%emt 0:00:31]} Nxd5 {[%emt 0:00:13]} 5. e4 {[%emt 0:05:06]} Nxc3 {[%emt 0:01:10]} 6. bxc3 {[%emt 0:00:02]} c5 {[%emt 0:00:10]} 7. Nf3 {[%emt 0:01:07]} cxd4 {[%emt 0:00:27]} 8. cxd4 {[%emt 0:00:04]} Bb4+ {[%emt 0:00:05]} 9. Bd2 {[%emt 0:00:03]} Bxd2+ {[%emt 0:00:05]} 10. Qxd2 {[%emt 0:00:04]} O-O {[%emt 0:00:45]} 11. Bc4 {[%emt 0:00:56]} Nd7 {[%emt 0:06:24]} 12. O-O {[%emt 0:00:09]} b6 {[%emt 0:00:17]} 13. d5 {[%emt 0:05:01]} Nc5 {[%emt 0:10:24]} 14. Rad1 {[%emt 0:11:21]} Bb7 {[%emt 0:36:12]} 15. Qf4 {[%emt 0:05:55]} Qe8 {[%emt 0:02:30]} 16. h4 {[%emt 0:24:58]} Rd8 {[%emt 0:09:27]} 17. Rfe1 {[%emt 0:10:29]} b5 {[%emt 0:01:25]} 18. Bf1 {[%emt 0:01:24]} a6 {[%emt 0:00:52]} 19. h5 {[%emt 0:11:28]} h6 {[%emt 0:06:18]} 20. Qc7 {[%emt 0:03:38]} Rc8 {[%emt 0:00:42]} 21. Qg3 {[%emt 0:00:02]} Qe7 {[%emt 0:06:22]} 22. d6 {[%emt 0:00:45]} Qd8 {[%emt 0:00:20]} 23. Rd4 {[%emt 0:08:08]} Qa5 {[%emt 0:02:38]} 24. d7 {[%emt 0:01:16]} Rcd8 {[%emt 0:00:11]} 25. Red1 {[%emt 0:00:18]} Nxe4 {[%emt 0:00:56]} 26. Qe5 {[%emt 0:03:06]} Nf6 {[%emt 0:01:14]} 27. Nh4 {[%emt 0:00:07]} Bd5 {[%emt 0:01:46]} 28. Rxd5 {[%emt 0:00:43]} exd5 {[%emt 0:03:44]} 29. Nf5 {[%emt 0:00:02]} Qb6 {[%emt 0:00:36]} 30. Rxd5 {[%emt 0:02:26]} Kh8 {[%emt 0:04:34]} 31. Qg3 {[%emt 0:31:03]} Nxh5 {[%emt 0:31:14]} 32. Qh4 {[%emt 0:00:11]} Qe6 {[%emt 0:00:23]} 33. Rc5 {[%emt 0:00:55]} Nf6 {[%emt 0:00:09]} 34. Nxh6 {[%emt 0:00:18]} gxh6 {[%emt 0:00:10]} 35. Rc6 {[%emt 0:00:04]} Qxc6 {[%emt 0:01:33]} 36. Qxh6+ {[%emt 0:00:02]} Kg8 {[%emt 0:00:08]} 37. Qg5+ {[%emt 0:00:22]} Kh8 {[%emt 0:00:28]} 38. Qh6+ {[%emt 0:00:11]} Kg8 {[%emt 0:00:04]} 39. Qg5+ {[%emt 0:00:02]} Kh7 {[%emt 0:00:58]} 40. Bd3+ {[%emt 0:00:00]} Ne4 {[%emt 0:00:00]} 0-1

[Event "DMP Ekstraliga 2020"]
[Site "Krakow"]
[Date "2020.08.28"]
[Round "3.21"]
[White "Hnydiuk, Aleksander"]
[Black "Socko, Bartosz"]
[Result "1/2-1/2"]
[ECO "E04"]
[WhiteElo "2411"]
[BlackElo "2601"]
[Annotator "ChessBase"]
[PlyCount "37"]
[EventDate "2020.08.26"]
[EventType "team-tourn"]
[EventCountry "POL"]
[SourceTitle "playchess.com"]
[Source "ChessBase"]
[SourceQuality "1"]
[TimeControl "30/5400+30:1800+30"]

1. Nf3 {[%emt 0:02:23]} d5 {[%emt 0:00:00]} 2. d4 {[%emt 0:00:04]} Nf6 {[%emt 0:00:00]} 3. c4 {[%emt 0:00:04]} e6 {[%emt 0:00:00]} 4. g3 {[%emt 0:00:19]} dxc4 {[%emt 0:00:03]} 5. Bg2 {[%emt 0:00:04]} a6 {[%emt 0:00:13]} 6. O-O {[%emt 0:01:08]} Nc6 {[%emt 0:00:06]} 7. Bg5 {[%emt 0:00:45]} Be7 {[%emt 0:00:17]} 8. e3 {[%emt 0:01:24]} O-O {[%emt 0:00:21]} 9. Nbd2 {[%emt 0:01:22]} e5 {[%emt 0:02:42]} 10. dxe5 {[%emt 0:01:43]} Ng4 {[%emt 0:00:51]} 11. Bxe7 {[%emt 0:00:09]} Qxe7 {[%emt 0:00:05]} 12. Nxc4 {[%emt 0:00:07]} Ncxe5 {[%emt 0:02:25]} 13. Nfxe5 {[%emt 0:01:01]} Nxe5 {[%emt 0:00:07]} 14. Nxe5 {[%emt 0:22:17]} Qxe5 {[%emt 0:00:21]} 15. Qd4 {[%emt 0:10:11]} Qxd4 {[%emt 0:04:03]} 16. exd4 {[%emt 0:00:03]} c6 {[%emt 0:00:12]} 17. d5 {[%emt 0:03:23]} cxd5 {[%emt 0:00:14]} 18. Bxd5 {[%emt 0:00:04]} Ra7 {[%emt 0:00:18]} 19. Rac1 {[%emt 0:02:52]} 1/2-1/2

[Event "DMP Ekstraliga 2020"]
[Site "Krakow"]
[Date "2020.08.28"]
[Round "3.22"]
[White "Miton, Kamil"]
[Black "Zilka, Stepan"]
[Result "1/2-1/2"]
[ECO "C54"]
[WhiteElo "2590"]
[BlackElo "2564"]
[Annotator "ChessBase"]
[PlyCount "55"]
[EventDate "2020.08.26"]
[EventType "team-tourn"]
[EventCountry "POL"]
[SourceTitle "playchess.com"]
[Source "ChessBase"]
[SourceQuality "1"]
[TimeControl "30/5400+30:1800+30"]

1. e4 {[%emt 0:00:00]} e5 {[%emt 0:06:28]} 2. Nf3 {[%emt 0:00:00]} Nc6 {[%emt 0:01:16]} 3. Bc4 {[%emt 0:00:35]} Bc5 {[%emt 0:00:17]} 4. c3 {[%emt 0:00:27]} Nf6 {[%emt 0:00:08]} 5. d3 {[%emt 0:00:05]} d6 {[%emt 0:00:43]} 6. O-O {[%emt 0:03:35]} a6 {[%emt 0:00:15]} 7. a4 {[%emt 0:00:19]} Ba7 {[%emt 0:00:38]} 8. Re1 {[%emt 0:01:22]} Be6 {[%emt 0:04:38]} 9. Bxe6 {[%emt 0:13:34]} fxe6 {[%emt 0:00:03]} 10. b4 {[%emt 0:02:00]} O-O 11. Nbd2 {[%emt 0:07:24]} Qd7 {[%emt 0:17:07]} 12. Nf1 {[%emt 0:11:31]} b5 {[%emt 0:00:23]} 13. Be3 {[%emt 0:02:44]} Bxe3 {[%emt 0:03:21]} 14. Nxe3 {[%emt 0:00:11]} d5 {[%emt 0:08:40]} 15. Qb3 {[%emt 0:09:25]} Kh8 {[%emt 0:05:40]} 16. Nf1 {[%emt 0:04:48]} Qd6 {[%emt 0:04:57]} 17. N1d2 {[%emt 0:02:00]} h6 {[%emt 0:09:32]} 18. d4 {[%emt 0:11:24]} dxe4 {[%emt 0:06:50]} 19. Nxe4 {[%emt 0:00:40]} Nxe4 {[%emt 0:00:16]} 20. Rxe4 {[%emt 0:00:06]} Qd5 {[%emt 0:01:13]} 21. Qc2 {[%emt 0:00:41]} exd4 {[%emt 0:03:25]} 22. Nxd4 {[%emt 0:00:14]} Nxd4 {[%emt 0:04:32]} 23. Rxd4 {[%emt 0:00:06]} Qh5 {[%emt 0:01:40]} 24. Re1 {[%emt 0:05:32]} bxa4 {[%emt 0:02:28]} 25. Qxa4 {[%emt 0:01:43]} c5 {[%emt 0:01:33]} 26. Rde4 {[%emt 0:00:55]} cxb4 {[%emt 0:01:28]} 27. cxb4 {[%emt 0:00:08]} Qb5 {[%emt 0:04:30]} 28. Qxb5 1/2-1/2

[Event "DMP Ekstraliga 2020"]
[Site "Krakow"]
[Date "2020.08.28"]
[Round "3.23"]
[White "Plat, Vojtech"]
[Black "Sadzikowski, Daniel"]
[Result "1/2-1/2"]
[ECO "D35"]
[WhiteElo "2566"]
[BlackElo "2522"]
[Annotator "ChessBase"]
[PlyCount "41"]
[EventDate "2020.08.26"]
[EventType "team-tourn"]
[EventCountry "POL"]
[SourceTitle "playchess.com"]
[Source "ChessBase"]
[SourceQuality "1"]
[TimeControl "30/5400+30:1800+30"]

1. d4 {[%emt 0:07:30]} d5 {[%emt 0:00:32]} 2. c4 {[%emt 0:00:29]} e6 {[%emt 0:00:05]} 3. Nc3 {[%emt 0:00:06]} Nf6 {[%emt 0:00:14]} 4. cxd5 {[%emt 0:00:05]} exd5 {[%emt 0:00:04]} 5. Bg5 {[%emt 0:00:05]} c6 {[%emt 0:00:22]} 6. e3 {[%emt 0:00:32]} Be7 {[%emt 0:00:13]} 7. Bd3 {[%emt 0:00:05]} Nbd7 {[%emt 0:00:32]} 8. Nge2 {[%emt 0:00:06]} Nf8 {[%emt 0:01:48]} 9. Qc2 {[%emt 0:01:41]} Ne6 {[%emt 0:05:47]} 10. Bh4 {[%emt 0:01:42]} g6 {[%emt 0:00:19]} 11. f3 {[%emt 0:00:33]} O-O {[%emt 0:00:27]} 12. Rd1 {[%emt 0:01:09]} b6 {[%emt 0:01:37]} 13. O-O {[%emt 0:01:08]} Bb7 {[%emt 0:01:41]} 14. Kh1 {[%emt 0:04:23]} Rc8 {[%emt 0:08:15]} 15. Qb1 {[%emt 0:01:44]} Nh5 {[%emt 0:12:02]} 16. Bf2 {[%emt 0:00:36]} Bh4 {[%emt 0:08:34]} 17. Bg1 {[%emt 0:03:42]} f5 {[%emt 0:11:50]} 18. g3 {[%emt 0:02:40]} Be7 {[%emt 0:01:02]} 19. e4 {[%emt 0:00:37]} fxe4 {[%emt 0:02:12]} 20. fxe4 {[%emt 0:00:05]} Qd7 {[%emt 0:00:13]} 21. Rxf8+ {[%emt 0:02:23]} 1/2-1/2

[Event "DMP Ekstraliga 2020"]
[Site "Krakow"]
[Date "2020.08.28"]
[Round "3.24"]
[White "Socko, Monika"]
[Black "Majdan, Joanna"]
[Result "1/2-1/2"]
[ECO "B40"]
[WhiteElo "2428"]
[BlackElo "2325"]
[Annotator "ChessBase"]
[PlyCount "76"]
[EventDate "2020.08.26"]
[EventType "team-tourn"]
[EventCountry "POL"]
[SourceTitle "playchess.com"]
[Source "ChessBase"]
[SourceQuality "1"]
[TimeControl "30/5400+30:1800+30"]

1. e4 {[%emt 0:00:00]} c5 {[%emt 0:02:21]} 2. Nf3 {[%emt 0:00:00]} e6 {[%emt 0:00:52]} 3. g3 {[%emt 0:00:03]} Nc6 {[%emt 0:01:57]} 4. Bg2 {[%emt 0:00:37]} Nf6 {[%emt 0:00:42]} 5. Qe2 {[%emt 0:04:19]} d5 {[%emt 0:01:47]} 6. d3 {[%emt 0:08:39]} Be7 {[%emt 0:03:15]} 7. O-O {[%emt 0:01:39]} O-O {[%emt 0:04:49]} 8. Nbd2 {[%emt 0:01:14]} Qc7 {[%emt 0:04:26]} 9. Re1 {[%emt 0:02:10]} b6 {[%emt 0:00:44]} 10. e5 {[%emt 0:04:00]} Nd7 {[%emt 0:00:32]} 11. c4 {[%emt 0:01:33]} Nb4 {[%emt 0:09:14]} 12. Nf1 {[%emt 0:05:50]} dxc4 {[%emt 0:00:07]} 13. dxc4 {[%emt 0:01:44]} Bb7 {[%emt 0:00:11]} 14. Bf4 {[%emt 0:02:56]} Rad8 {[%emt 0:02:36]} 15. a3 {[%emt 0:09:04]} Bxf3 {[%emt 0:02:30]} 16. Bxf3 {[%emt 0:00:04]} Nc6 {[%emt 0:00:04]} 17. Qe3 {[%emt 0:08:00]} Nd4 {[%emt 0:01:44]} 18. Be4 {[%emt 0:00:06]} Nxe5 {[%emt 0:05:34]} 19. Bg2 {[%emt 0:07:53]} f6 {[%emt 0:01:31]} 20. Bxe5 {[%emt 0:00:22]} fxe5 {[%emt 0:00:04]} 21. Qxe5 {[%emt 0:02:01]} Qxe5 {[%emt 0:00:04]} 22. Rxe5 {[%emt 0:00:05]} Bf6 {[%emt 0:00:02]} 23. Re4 {[%emt 0:00:10]} Nb3 {[%emt 0:02:18]} 24. Rae1 {[%emt 0:05:12]} Nd2 {[%emt 0:09:00]} 25. Nxd2 {[%emt 0:04:57]} Rxd2 {[%emt 0:00:06]} 26. Bh3 {[%emt 0:00:32]} Bxb2 {[%emt 0:05:48]} 27. Bxe6+ {[%emt 0:01:40]} Kh8 {[%emt 0:00:13]} 28. f4 {[%emt 0:01:25]} g5 {[%emt 0:14:08]} 29. Bd5 {[%emt 0:01:42]} gxf4 {[%emt 0:01:07]} 30. Re8 {[%emt 0:08:30]} Bd4+ {[%emt 0:04:35]} 31. Kh1 {[%emt 0:30:05]} Rxe8 {[%emt 0:30:02]} 32. Rxe8+ {[%emt 0:00:03]} Kg7 {[%emt 0:00:04]} 33. Re7+ {[%emt 0:02:45]} Kf6 {[%emt 0:02:21]} 34. Rf7+ {[%emt 0:01:43]} Kg5 {[%emt 0:01:18]} 35. Rxf4 {[%emt 0:01:33]} Rd1+ {[%emt 0:00:18]} 36. Kg2 {[%emt 0:00:04]} Rd2+ {[%emt 0:00:18]} 37. Kh1 {[%emt 0:01:14]} Rd1+ {[%emt 0:00:03]} 38. Kg2 {[%emt 0:00:02]} Rd2+ {[%emt 0:00:04]} 1/2-1/2

[Event "DMP Ekstraliga 2020"]
[Site "Krakow"]
[Date "2020.08.28"]
[Round "3.25"]
[White "Golubka, Petro"]
[Black "Klekowski, Maciej"]
[Result "1/2-1/2"]
[ECO "A46"]
[WhiteElo "2495"]
[BlackElo "2511"]
[Annotator "ChessBase"]
[PlyCount "36"]
[EventDate "2020.08.26"]
[EventType "team-tourn"]
[EventCountry "POL"]
[SourceTitle "playchess.com"]
[Source "ChessBase"]
[SourceQuality "1"]
[TimeControl "30/5400+30:1800+30"]

1. d4 {[%emt 0:03:03]} Nf6 {[%emt 0:00:00]} 2. Nf3 {[%emt 0:00:10]} e6 {[%emt 0:01:23]} 3. g3 {[%emt 0:00:05]} b6 {[%emt 0:01:37]} 4. Bg2 {[%emt 0:00:14]} Bb7 {[%emt 0:00:07]} 5. O-O {[%emt 0:00:03]} Be7 {[%emt 0:00:11]} 6. c4 {[%emt 0:00:03]} O-O {[%emt 0:00:05]} 7. d5 {[%emt 0:00:15]} exd5 {[%emt 0:04:05]} 8. Nh4 {[%emt 0:00:07]} c6 {[%emt 0:01:49]} 9. cxd5 {[%emt 0:00:11]} Nxd5 {[%emt 0:00:04]} 10. Nf5 {[%emt 0:00:11]} Nc7 {[%emt 0:01:30]} 11. e4 {[%emt 0:00:06]} d5 {[%emt 0:00:10]} 12. Nc3 {[%emt 0:00:11]} Bf6 {[%emt 0:19:24]} 13. Bf4 {[%emt 0:04:05]} Bxc3 {[%emt 0:19:31]} 14. bxc3 {[%emt 0:00:08]} Nba6 {[%emt 0:00:14]} 15. Be5 {[%emt 0:15:37]} f6 {[%emt 0:03:27]} 16. Bd6 {[%emt 0:14:34]} Rf7 {[%emt 0:06:17]} 17. Bf4 {[%emt 0:04:39]} Nc5 {[%emt 0:10:44]} 18. Nd6 {[%emt 0:12:01]} Rd7 {[%emt 0:01:10]} 1/2-1/2

[Event "DMP Ekstraliga 2020"]
[Site "Krakow"]
[Date "2020.08.28"]
[Round "3.26"]
[White "Teclaf, Pawel"]
[Black "Pultinevicius, Paulius"]
[Result "1-0"]
[ECO "B10"]
[WhiteElo "2454"]
[BlackElo "2519"]
[Annotator "ChessBase"]
[PlyCount "43"]
[EventDate "2020.08.26"]
[EventType "team-tourn"]
[EventCountry "POL"]
[SourceTitle "playchess.com"]
[Source "ChessBase"]
[SourceQuality "1"]
[TimeControl "30/5400+30:1800+30"]

1. e4 {[%emt 0:00:00]} c6 {[%emt 0:01:36]} 2. c4 {[%emt 0:00:00]} d5 {[%emt 0:01:21]} 3. exd5 {[%emt 0:00:00]} cxd5 {[%emt 0:00:03]} 4. cxd5 {[%emt 0:00:00]} Nf6 {[%emt 0:00:22]} 5. Nc3 {[%emt 0:00:24]} Nxd5 {[%emt 0:00:09]} 6. Nf3 {[%emt 0:00:03]} Nc6 {[%emt 0:02:47]} 7. d4 {[%emt 0:00:05]} e6 {[%emt 0:06:14]} 8. Bc4 {[%emt 0:01:09]} Bb4 {[%emt 0:07:37]} 9. Qd3 {[%emt 0:08:18]} O-O {[%emt 0:03:22]} 10. O-O {[%emt 0:03:05]} Be7 {[%emt 0:00:25]} 11. Re1 {[%emt 0:11:50]} Bf6 {[%emt 0:03:29]} 12. Ne4 {[%emt 0:06:08]} Nce7 {[%emt 0:00:35]} 13. Nxf6+ {[%emt 0:01:58]} Nxf6 {[%emt 0:02:13]} 14. Bg5 {[%emt 0:03:15]} b6 {[%emt 0:29:50]} 15. Ne5 {[%emt 0:11:55]} Bb7 {[%emt 0:00:15]} 16. Rad1 {[%emt 0:08:32]} Rc8 {[%emt 0:12:17]} 17. Qh3 {[%emt 0:03:25]} Nfd5 {[%emt 0:12:50]} 18. Re4 {[%emt 0:15:25]} f6 {[%emt 0:02:02]} 19. Rh4 {[%emt 0:02:23]} Rxc4 {[%emt 0:02:34]} 20. Rxh7 {[%emt 0:02:26]} fxe5 {[%emt 0:00:27]} 21. Qh5 {[%emt 0:00:03]} g6 {[%emt 0:09:30]} 22. Qh6 {[%emt 0:00:13]} 1-0

[Event "DMP Ekstraliga 2020"]
[Site "Krakow"]
[Date "2020.08.28"]
[Round "3.27"]
[White "Warakomski, Tomasz"]
[Black "Barski, Radoslaw"]
[Result "0-1"]
[ECO "B40"]
[WhiteElo "2515"]
[BlackElo "2444"]
[Annotator "ChessBase"]
[PlyCount "66"]
[EventDate "2020.08.26"]
[EventType "team-tourn"]
[EventCountry "POL"]
[SourceTitle "playchess.com"]
[Source "ChessBase"]
[SourceQuality "1"]
[TimeControl "30/5400+30:1800+30"]

1. e4 {[%emt 0:01:33]} c5 {[%emt 0:00:00]} 2. Nf3 {[%emt 0:01:18]} e6 {[%emt 0:00:09]} 3. d4 {[%emt 0:01:36]} cxd4 {[%emt 0:00:07]} 4. Nxd4 {[%emt 0:00:03]} Nf6 {[%emt 0:00:08]} 5. Nc3 {[%emt 0:02:37]} Nc6 {[%emt 0:00:49]} 6. Nxc6 {[%emt 0:04:02]} bxc6 {[%emt 0:01:50]} 7. e5 {[%emt 0:00:48]} Nd5 {[%emt 0:00:06]} 8. Ne4 {[%emt 0:00:04]} Qc7 {[%emt 0:00:07]} 9. f4 {[%emt 0:00:56]} Rb8 {[%emt 0:00:24]} 10. Bd3 {[%emt 0:04:42]} Qb6 {[%emt 0:01:53]} 11. a3 {[%emt 0:05:54]} f5 {[%emt 0:10:46]} 12. exf6 {[%emt 0:05:51]} Nxf6 {[%emt 0:00:30]} 13. Nxf6+ {[%emt 0:06:10]} gxf6 {[%emt 0:00:42]} 14. Qh5+ {[%emt 0:00:18]} Kd8 {[%emt 0:00:39]} 15. Bd2 {[%emt 0:00:43]} d5 {[%emt 0:01:47]} 16. Qe2 {[%emt 0:09:01]} a5 {[%emt 0:16:23]} 17. Bc3 {[%emt 0:08:21]} Be7 {[%emt 0:00:28]} 18. Qd2 {[%emt 0:05:07]} Ra8 {[%emt 0:02:10]} 19. O-O-O {[%emt 0:02:08]} Bd7 {[%emt 0:03:27]} 20. Rhe1 {[%emt 0:01:12]} Ra7 {[%emt 0:09:45]} 21. Bf5 {[%emt 0:05:54]} exf5 {[%emt 0:15:58]} 22. Rxe7 {[%emt 0:00:11]} Kxe7 {[%emt 0:00:03]} 23. Bd4 {[%emt 0:00:04]} c5 {[%emt 0:00:40]} 24. Qe3+ {[%emt 0:13:53]} Kd6 {[%emt 0:00:19]} 25. Bxf6 {[%emt 0:04:07]} Re8 {[%emt 0:00:28]} 26. Be5+ {[%emt 0:00:36]} Kc6 {[%emt 0:00:39]} 27. c4 {[%emt 0:04:28]} Be6 {[%emt 0:00:25]} 28. Rd3 {[%emt 0:03:11]} d4 {[%emt 0:03:12]} 29. Qf3+ {[%emt 0:02:37]} Kd7 {[%emt 0:00:09]} 30. Rb3 {[%emt 0:00:18]} Qc6 {[%emt 0:00:12]} 31. Qh3 {[%emt 0:30:08]} Rb7 {[%emt 0:33:06]} 32. Rxb7+ {[%emt 0:02:34]} Qxb7 33. Qxh7+ {[%emt 0:00:04]} Re7 {[%emt 0:00:58]} 0-1